[Event "2026 European Womens Championship"]
[Site "Batumi, GE"]
[Date "2026.06.03"]
[Round "9"]
[White "Ismayil, Malak"]
[Black "Hrebenshchykova, Yelyzaveta"]
[Result "1/2-1/2"]
[Board "24"]
[TimeControl "5400+30"]
[WhiteFideId "13412604"]
[BlackFideId "14159899"]
[WhiteElo "2122"]
[BlackElo "2309"]
[WhiteTitle "WIM"]
[BlackTitle "WGM"]
[WhiteClock "0:11:20"]
[BlackClock "0:03:13"]
[Variant "Standard"]

1. e4 {[%clk 1:30:50]}  c5 {[%clk 1:30:56]} 2. c3 {[%clk 1:31:15]}  e6 {[%clk 1:31:05]} 3. d4 {[%clk 1:30:45]}  d5 {[%clk 1:31:31]}
4. exd5 {[%clk 1:30:23]}  exd5 {[%clk 1:31:56]} 5. Bb5+ {[%clk 1:29:35]}  Nc6 {[%clk 1:30:31]} 6. Nf3 {[%clk 1:27:40]}  Bd6 {[%clk 1:30:49]}
7. O-O {[%clk 1:25:22]}  Nge7 {[%clk 1:30:57]} 8. dxc5 {[%clk 1:23:24]}  Bxc5 {[%clk 1:31:23]} 9. Nbd2 {[%clk 1:23:41]}  O-O {[%clk 1:31:13]}
10. Nb3 {[%clk 1:23:47]}  Bd6 {[%clk 1:31:37]} 11. h3 {[%clk 1:23:49]}  Nf5 {[%clk 1:18:15]} 12. Nbd4 {[%clk 1:17:20]}  Nfxd4 {[%clk 1:12:12]}
13. Nxd4 {[%clk 1:11:58]}  Bc7 {[%clk 1:12:13]} 14. Ne2 {[%clk 1:04:15]}  Bf5 {[%clk 0:45:32]} 15. Bf4 {[%clk 1:00:02]}  Bxf4 {[%clk 0:28:27]}
16. Nxf4 {[%clk 1:00:27]}  Qg5 {[%clk 0:28:55]} 17. Qf3 {[%clk 0:59:45]}  a6 {[%clk 0:24:32]} 18. Bxc6 {[%clk 0:43:28]}  bxc6 {[%clk 0:24:58]}
19. Rfe1 {[%clk 0:39:44]}  Rfe8 {[%clk 0:25:24]} 20. Re3 {[%clk 0:39:16]}  Be4 {[%clk 0:22:11]} 21. Qg4 {[%clk 0:39:04]}  h6 {[%clk 0:22:36]}
22. Rg3 {[%clk 0:33:59]}  Qxg4 {[%clk 0:21:42]} 23. hxg4 {[%clk 0:34:18]}  Reb8 {[%clk 0:18:56]} 24. b3 {[%clk 0:34:28]}  a5 {[%clk 0:19:23]}
25. Re3 {[%clk 0:34:29]}  a4 {[%clk 0:15:26]} 26. b4 {[%clk 0:34:07]}  a3 {[%clk 0:15:53]} 27. f3 {[%clk 0:32:29]}  g5 {[%clk 0:07:24]}
28. fxe4 {[%clk 0:18:35]}  gxf4 {[%clk 0:07:50]} 29. Re2 {[%clk 0:17:26]}  d4 {[%clk 0:07:05]} 30. cxd4 {[%clk 0:17:18]}  Rxb4 {[%clk 0:07:32]}
31. Rd1 {[%clk 0:17:37]}  Rb2 {[%clk 0:05:22]} 32. Kf2 {[%clk 0:16:42]}  Rab8 {[%clk 0:05:02]} 33. Rd3 {[%clk 0:15:15]}  R8b4 {[%clk 0:01:55]}
34. Rxa3 {[%clk 0:15:06]}  Rxe2+ {[%clk 0:02:12]} 35. Kxe2 {[%clk 0:15:33]}  Rxd4 {[%clk 0:02:39]} 36. Kf3 {[%clk 0:15:33]}  Rd2 {[%clk 0:03:02]}
37. Ra6 {[%clk 0:14:26]}  Kg7 {[%clk 0:02:54]} 38. a4 {[%clk 0:14:20]}  Ra2 {[%clk 0:02:01]} 39. Kxf4 {[%clk 0:14:12]}  c5 {[%clk 0:02:28]}
40. Rc6 {[%clk 0:11:49]}  Rxa4 {[%clk 0:02:23]} 41. Rxc5 {[%clk 0:12:15]}  Kg6 {[%clk 0:02:49]} 42. Rc6+ {[%clk 0:12:38]}  f6 {[%clk 0:03:15]}
43. Rb6 {[%clk 0:12:50]}  Rc4 {[%clk 0:02:44]} 44. Re6 {[%clk 0:11:34]}  Ra4 {[%clk 0:02:26]} 45. Rb6 {[%clk 0:11:16]}  Rc4 {[%clk 0:02:49]}
46. Ra6 {[%clk 0:11:20]}  Rb4 {[%clk 0:03:13]} 1/2-1/2

[Event "2026 European Womens Championship"]
[Site "Batumi, GE"]
[Date "2026.06.03"]
[Round "9"]
[White "Osmak, Yuliia"]
[Black "Kobak, Polina"]
[Result "0-1"]
[Board "25"]
[TimeControl "5400+30"]
[WhiteFideId "14101602"]
[BlackFideId "24269727"]
[WhiteElo "2451"]
[BlackElo "1986"]
[WhiteTitle "IM"]
[BlackTitle "WFM"]
[WhiteClock "0:12:48"]
[BlackClock "0:02:26"]
[Variant "Standard"]

1. e4 {[%clk 1:30:57]}  e6 {[%clk 1:30:33]} 2. d4 {[%clk 1:31:22]}  d5 {[%clk 1:30:59]} 3. e5 {[%clk 1:31:39]}  c5 {[%clk 1:31:24]}
4. c3 {[%clk 1:32:06]}  Nc6 {[%clk 1:31:47]} 5. Nf3 {[%clk 1:32:31]}  f6 {[%clk 1:31:26]} 6. Bd3 {[%clk 1:31:11]}  fxe5 {[%clk 1:22:05]}
7. Nxe5 {[%clk 1:31:09]}  Nxe5 {[%clk 1:22:03]} 8. dxe5 {[%clk 1:31:33]}  g6 {[%clk 1:12:45]} 9. h4 {[%clk 1:22:45]}  Qc7 {[%clk 1:11:20]}
10. f4 {[%clk 1:11:05]}  Bd7 {[%clk 1:06:52]} 11. Nd2 {[%clk 1:05:16]}  O-O-O {[%clk 0:59:17]} 12. Nf3 {[%clk 1:05:29]}  Nh6 {[%clk 0:52:37]}
13. Ng5 {[%clk 0:55:34]}  Be7 {[%clk 0:45:31]} 14. Bd2 {[%clk 0:51:08]}  Rdf8 {[%clk 0:41:07]} 15. g4 {[%clk 0:48:12]}  Qb6 {[%clk 0:35:49]}
16. b3 {[%clk 0:45:44]}  Nf7 {[%clk 0:32:32]} 17. Qe2 {[%clk 0:44:25]}  Nd8 {[%clk 0:31:21]} 18. c4 {[%clk 0:39:16]}  h6 {[%clk 0:23:21]}
19. Nf3 {[%clk 0:38:40]}  h5 {[%clk 0:23:03]} 20. Rg1 {[%clk 0:37:17]}  Rfg8 {[%clk 0:11:42]} 21. O-O-O {[%clk 0:35:52]}  d4 {[%clk 0:10:25]}
22. Rg3 {[%clk 0:31:20]}  a5 {[%clk 0:06:54]} 23. Rdg1 {[%clk 0:29:52]}  hxg4 {[%clk 0:07:18]} 24. Rxg4 {[%clk 0:30:11]}  a4 {[%clk 0:07:20]}
25. Kb2 {[%clk 0:29:21]}  Nc6 {[%clk 0:06:30]} 26. Rxg6 {[%clk 0:26:52]}  Rxg6 {[%clk 0:05:00]} 27. Rxg6 {[%clk 0:25:11]}  Kc7 {[%clk 0:03:49]}
28. Ng5 {[%clk 0:21:58]}  Bxg5 {[%clk 0:03:12]} 29. hxg5 {[%clk 0:20:46]}  Nb4 {[%clk 0:01:59]} 30. Bb1 {[%clk 0:14:35]}  Rh1 {[%clk 0:01:29]}
31. Rh6 {[%clk 0:13:32]}  a3+ {[%clk 0:01:32]} 32. Kxa3 {[%clk 0:11:59]}  Qa5+ {[%clk 0:01:44]} 33. Kb2 {[%clk 0:12:23]}  Rxb1+ {[%clk 0:02:00]}
34. Kxb1 {[%clk 0:12:48]}  Qxa2+ {[%clk 0:02:26]} 0-1

[Event "2026 European Womens Championship"]
[Site "Batumi, GE"]
[Date "2026.06.03"]
[Round "9"]
[White "Tsolakidou, Stavroula"]
[Black "Kirtadze, Anastasia"]
[Result "1-0"]
[Board "26"]
[TimeControl "5400+30"]
[WhiteFideId "4264312"]
[BlackFideId "13622714"]
[WhiteElo "2455"]
[BlackElo "2233"]
[WhiteTitle "IM"]
[BlackTitle "WIM"]
[WhiteClock "0:14:44"]
[BlackClock "0:01:14"]
[Variant "Standard"]

1. e4 {[%clk 1:29:47]}  c6 {[%clk 1:30:51]} 2. d4 {[%clk 1:29:57]}  d5 {[%clk 1:31:17]} 3. e5 {[%clk 1:30:19]}  Bf5 {[%clk 1:31:42]}
4. Nf3 {[%clk 1:30:19]}  e6 {[%clk 1:32:05]} 5. Be2 {[%clk 1:30:36]}  Ne7 {[%clk 1:32:30]} 6. O-O {[%clk 1:29:09]}  c5 {[%clk 1:32:46]}
7. c3 {[%clk 1:25:40]}  Nec6 {[%clk 1:32:59]} 8. Be3 {[%clk 1:21:37]}  Nd7 {[%clk 1:32:16]} 9. Nbd2 {[%clk 1:14:01]}  h6 {[%clk 1:28:35]}
10. Ne1 {[%clk 0:58:39]}  g5 {[%clk 1:17:44]} 11. f4 {[%clk 0:54:48]}  gxf4 {[%clk 1:11:23]} 12. Rxf4 {[%clk 0:54:18]}  Be7 {[%clk 1:10:07]}
13. Rxf5 {[%clk 0:48:49]}  exf5 {[%clk 1:10:06]} 14. Bh5 {[%clk 0:48:59]}  Bg5 {[%clk 1:02:38]} 15. Bf2 {[%clk 0:42:19]}  Nf8 {[%clk 0:51:35]}
16. Nb3 {[%clk 0:37:34]}  c4 {[%clk 0:34:11]} 17. Nc5 {[%clk 0:36:43]}  Qc8 {[%clk 0:31:43]} 18. b3 {[%clk 0:32:40]}  b6 {[%clk 0:29:34]}
19. bxc4 {[%clk 0:29:43]}  bxc5 {[%clk 0:18:26]} 20. cxd5 {[%clk 0:30:08]}  Nd8 {[%clk 0:16:04]} 21. h4 {[%clk 0:30:05]}  c4 {[%clk 0:05:21]}
22. hxg5 {[%clk 0:23:58]}  hxg5 {[%clk 0:05:45]} 23. Be2 {[%clk 0:23:46]}  Ng6 {[%clk 0:04:10]} 24. Qa4+ {[%clk 0:23:44]}  Kf8 {[%clk 0:04:23]}
25. Bxc4 {[%clk 0:22:09]}  Kg7 {[%clk 0:02:11]} 26. Nd3 {[%clk 0:21:40]}  Nb7 {[%clk 0:01:13]} 27. Qa6 {[%clk 0:19:20]}  Na5 {[%clk 0:00:36]}
28. Qf6+ {[%clk 0:18:56]}  Kh6 {[%clk 0:00:42]} 29. Ba6 {[%clk 0:18:03]}  Qxc3 {[%clk 0:00:35]} 30. Re1 {[%clk 0:14:51]}  f4 {[%clk 0:00:34]}
31. e6 {[%clk 0:14:48]}  Kh5 {[%clk 0:00:33]} 32. Ne5 {[%clk 0:14:00]}  Nxe5 {[%clk 0:00:40]} 33. Rxe5 {[%clk 0:14:18]}  Qa1+ {[%clk 0:00:38]}
34. Re1 {[%clk 0:13:56]}  Qc3 {[%clk 0:00:35]} 35. Be2+ {[%clk 0:14:11]}  g4 {[%clk 0:01:01]} 36. Bxg4+ {[%clk 0:14:21]}  Kxg4 {[%clk 0:01:14]}
37. Qg7+ {[%clk 0:14:44]} 1-0

[Event "2026 European Womens Championship"]
[Site "Batumi, GE"]
[Date "2026.06.03"]
[Round "9"]
[White "Maltsevskaya, Aleksandra"]
[Black "Hryzlova, Sofiia"]
[Result "0-1"]
[Board "27"]
[TimeControl "5400+30"]
[WhiteFideId "24174041"]
[BlackFideId "14174669"]
[WhiteElo "2390"]
[BlackElo "2226"]
[WhiteTitle "IM"]
[BlackTitle "WIM"]
[WhiteClock "0:02:51"]
[BlackClock "0:04:14"]
[Variant "Standard"]

1. e4 {[%clk 1:30:57]}  c5 {[%clk 1:30:55]} 2. Nf3 {[%clk 1:31:21]}  d6 {[%clk 1:31:19]} 3. Bb5+ {[%clk 1:31:45]}  Bd7 {[%clk 1:31:43]}
4. c4 {[%clk 1:32:08]}  a6 {[%clk 1:31:56]} 5. Bxd7+ {[%clk 1:32:12]}  Nxd7 {[%clk 1:32:19]} 6. O-O {[%clk 1:30:43]}  e6 {[%clk 1:31:54]}
7. Nc3 {[%clk 1:30:40]}  Ne5 {[%clk 1:31:58]} 8. d3 {[%clk 1:24:00]}  Ne7 {[%clk 1:28:36]} 9. Be3 {[%clk 1:18:56]}  N7c6 {[%clk 1:26:54]}
10. Ne1 {[%clk 1:16:10]}  g5 {[%clk 1:26:20]} 11. Qh5 {[%clk 1:14:33]}  Be7 {[%clk 1:21:59]} 12. f4 {[%clk 1:11:57]}  gxf4 {[%clk 1:21:44]}
13. Bxf4 {[%clk 1:12:20]}  Ng6 {[%clk 1:17:06]} 14. Be3 {[%clk 1:05:54]}  Nce5 {[%clk 1:06:58]} 15. b3 {[%clk 0:57:11]}  Bf6 {[%clk 1:02:56]}
16. Rd1 {[%clk 0:56:31]}  Bg7 {[%clk 0:56:32]} 17. d4 {[%clk 0:51:31]}  cxd4 {[%clk 0:56:01]} 18. Bxd4 {[%clk 0:51:52]}  Qh4 {[%clk 0:52:05]}
19. Qxh4 {[%clk 0:38:41]}  Nxh4 {[%clk 0:52:29]} 20. Na4 {[%clk 0:35:01]}  Rd8 {[%clk 0:44:04]} 21. Bb6 {[%clk 0:28:55]}  Rd7 {[%clk 0:44:06]}
22. g3 {[%clk 0:26:59]}  Nhg6 {[%clk 0:43:54]} 23. Ng2 {[%clk 0:27:21]}  O-O {[%clk 0:34:55]} 24. Nf4 {[%clk 0:24:22]}  Rc8 {[%clk 0:16:49]}
25. Kg2 {[%clk 0:20:38]}  Rc6 {[%clk 0:13:52]} 26. h3 {[%clk 0:18:06]}  Bh8 {[%clk 0:10:51]} 27. Rd2 {[%clk 0:17:02]}  Ne7 {[%clk 0:09:00]}
28. Be3 {[%clk 0:05:11]}  Nc8 {[%clk 0:06:05]} 29. Nb2 {[%clk 0:02:49]}  b5 {[%clk 0:05:38]} 30. cxb5 {[%clk 0:03:14]}  axb5 {[%clk 0:06:04]}
31. Nbd3 {[%clk 0:03:40]}  Nxd3 {[%clk 0:03:08]} 32. Nxd3 {[%clk 0:04:04]}  Rc3 {[%clk 0:03:13]} 33. Bf4 {[%clk 0:02:12]}  Kf8 {[%clk 0:00:51]}
34. Nb4 {[%clk 0:01:29]}  Ke7 {[%clk 0:00:54]} 35. Rf3 {[%clk 0:00:34]}  Rdc7 {[%clk 0:00:39]} 36. Bg5+ {[%clk 0:00:33]}  Ke8 {[%clk 0:00:46]}
37. Be3 {[%clk 0:00:36]}  Rc1 {[%clk 0:00:38]} 38. Rf4 {[%clk 0:00:36]}  Bc3 {[%clk 0:00:40]} 39. Rc2 {[%clk 0:00:34]}  Rxc2+ {[%clk 0:00:39]}
40. Nxc2 {[%clk 0:00:59]}  b4 {[%clk 0:00:32]} 41. Rf2 {[%clk 0:00:36]}  Na7 {[%clk 0:25:56]} 42. Bd2 {[%clk 0:24:07]}  Nc6 {[%clk 0:21:21]}
43. a3 {[%clk 0:11:28]}  Bxd2 {[%clk 0:19:11]} 44. Rxd2 {[%clk 0:11:52]}  Ke7 {[%clk 0:16:34]} 45. axb4 {[%clk 0:10:02]}  Rb7 {[%clk 0:16:42]}
46. Nd4 {[%clk 0:09:01]}  Nxb4 {[%clk 0:16:23]} 47. h4 {[%clk 0:07:44]}  Rb6 {[%clk 0:15:50]} 48. Kf3 {[%clk 0:07:47]}  Na6 {[%clk 0:15:14]}
49. Rc2 {[%clk 0:06:51]}  Nc5 {[%clk 0:14:34]} 50. b4 {[%clk 0:07:03]}  Nd3 {[%clk 0:14:04]} 51. Ke3 {[%clk 0:01:30]}  Nxb4 {[%clk 0:13:44]}
52. Rc7+ {[%clk 0:01:53]}  Kf8 {[%clk 0:10:53]} 53. h5 {[%clk 0:01:52]}  h6 {[%clk 0:10:33]} 54. g4 {[%clk 0:02:17]}  Ra6 {[%clk 0:08:33]}
55. Rb7 {[%clk 0:00:35]}  Ra3+ {[%clk 0:08:39]} 56. Ke2 {[%clk 0:01:00]}  Nd3 {[%clk 0:06:00]} 57. Nb5 {[%clk 0:01:24]}  Rb3 {[%clk 0:04:48]}
58. Nxd6 {[%clk 0:00:32]}  Rxb7 {[%clk 0:05:12]} 59. Nxb7 {[%clk 0:00:59]}  Ne5 {[%clk 0:05:36]} 60. Nc5 {[%clk 0:00:34]}  Nxg4 {[%clk 0:05:49]}
61. Kf3 {[%clk 0:00:32]}  Nf6 {[%clk 0:05:33]} 62. e5 {[%clk 0:00:42]}  Nxh5 {[%clk 0:05:49]} 63. Kg4 {[%clk 0:01:05]}  Ng7 {[%clk 0:06:13]}
64. Nd7+ {[%clk 0:01:31]}  Ke7 {[%clk 0:06:21]} 65. Nf6 {[%clk 0:01:56]}  Nf5 {[%clk 0:06:35]} 66. Kh5 {[%clk 0:01:25]}  Kf8 {[%clk 0:06:35]}
67. Nh7+ {[%clk 0:00:59]}  Kg7 {[%clk 0:06:56]} 68. Nf6 {[%clk 0:01:24]}  Ng3+ {[%clk 0:05:57]} 69. Kg4 {[%clk 0:00:57]}  Ne2 {[%clk 0:06:16]}
70. Kh5 {[%clk 0:00:32]}  Nf4+ {[%clk 0:06:35]} 71. Kg4 {[%clk 0:00:58]}  Nd5 {[%clk 0:04:51]} 72. Ne8+ {[%clk 0:00:37]}  Kg6 {[%clk 0:05:09]}
73. Nd6 {[%clk 0:01:02]}  Ne3+ {[%clk 0:04:53]} 74. Kf4 {[%clk 0:01:20]}  Nd5+ {[%clk 0:04:32]} 75. Kg3 {[%clk 0:00:33]}  h5 {[%clk 0:04:33]}
76. Kf3 {[%clk 0:00:36]}  Ne7 {[%clk 0:03:28]} 77. Kf4 {[%clk 0:00:54]}  Nf5 {[%clk 0:02:48]} 78. Nc4 {[%clk 0:01:09]}  Nh6 {[%clk 0:02:19]}
79. Nd2 {[%clk 0:00:32]}  h4 {[%clk 0:02:07]} 80. Nf3 {[%clk 0:00:35]}  Kh5 {[%clk 0:02:09]} 81. Ng5 {[%clk 0:00:43]}  Kg6 {[%clk 0:01:30]}
82. Nh3 {[%clk 0:00:33]}  Nf5 {[%clk 0:01:24]} 83. Ng1 {[%clk 0:00:31]}  Kh5 {[%clk 0:01:21]} 84. Nh3 {[%clk 0:00:33]}  Nd4 {[%clk 0:01:24]}
85. Nf2 {[%clk 0:00:33]}  Ne2+ {[%clk 0:01:27]} 86. Kf3 {[%clk 0:00:42]}  Nc3 {[%clk 0:01:31]} 87. Nh3 {[%clk 0:00:32]}  Nd5 {[%clk 0:01:48]}
88. Nf2 {[%clk 0:00:54]}  Ne7 {[%clk 0:01:19]} 89. Ne4 {[%clk 0:00:32]}  Ng6 {[%clk 0:01:26]} 90. Nd6 {[%clk 0:00:33]}  Nxe5+ {[%clk 0:01:42]}
91. Kf4 {[%clk 0:00:59]}  Ng6+ {[%clk 0:01:54]} 92. Kf3 {[%clk 0:01:23]}  f5 {[%clk 0:02:15]} 93. Nf7 {[%clk 0:00:55]}  e5 {[%clk 0:02:28]}
94. Nd6 {[%clk 0:00:58]}  e4+ {[%clk 0:02:40]} 95. Ke3 {[%clk 0:01:23]}  Kg4 {[%clk 0:03:05]} 96. Nf7 {[%clk 0:01:36]}  h3 {[%clk 0:03:08]}
97. Nh6+ {[%clk 0:02:00]}  Kg5 {[%clk 0:03:27]} 98. Nf7+ {[%clk 0:02:25]}  Kf6 {[%clk 0:03:52]} 99. Nd6 {[%clk 0:02:51]}  h2 {[%clk 0:04:14]}
100. Kd4 {[%clk 0:02:44]} 0-1

[Event "2026 European Womens Championship"]
[Site "Batumi, GE"]
[Date "2026.06.03"]
[Round "9"]
[White "Bashylina, Luisa"]
[Black "Gaponenko, Inna"]
[Result "1/2-1/2"]
[Board "28"]
[TimeControl "5400+30"]
[WhiteFideId "12983292"]
[BlackFideId "14101181"]
[WhiteElo "2208"]
[BlackElo "2331"]
[WhiteTitle "WFM"]
[BlackTitle "IM"]
[WhiteClock "0:29:26"]
[BlackClock "0:04:33"]
[Variant "Standard"]

1. d4 {[%clk 1:30:57]}  d6 {[%clk 1:30:52]} 2. c4 {[%clk 1:31:23]}  e5 {[%clk 1:31:18]} 3. Nc3 {[%clk 1:31:49]}  exd4 {[%clk 1:31:42]}
4. Qxd4 {[%clk 1:32:13]}  Nf6 {[%clk 1:31:50]} 5. b3 {[%clk 1:32:04]}  a5 {[%clk 1:30:32]} 6. Bb2 {[%clk 1:32:19]}  a4 {[%clk 1:30:40]}
7. Rd1 {[%clk 1:32:43]}  axb3 {[%clk 1:29:50]} 8. axb3 {[%clk 1:33:06]}  Nc6 {[%clk 1:28:20]} 9. Qd2 {[%clk 1:33:30]}  Nb4 {[%clk 1:24:31]}
10. e4 {[%clk 1:23:52]}  Be7 {[%clk 1:23:56]} 11. Nf3 {[%clk 1:19:21]}  O-O {[%clk 1:11:38]} 12. Be2 {[%clk 1:14:44]}  Nd7 {[%clk 1:08:17]}
13. O-O {[%clk 1:11:40]}  Nc5 {[%clk 0:56:51]} 14. Nb5 {[%clk 0:53:22]}  Ra2 {[%clk 0:39:28]} 15. Qc3 {[%clk 0:48:33]}  f6 {[%clk 0:39:16]}
16. Nd2 {[%clk 0:42:18]}  c6 {[%clk 0:33:01]} 17. Nd4 {[%clk 0:40:16]}  Qb6 {[%clk 0:30:03]} 18. Ra1 {[%clk 0:38:37]}  Bd7 {[%clk 0:21:09]}
19. Rxa2 {[%clk 0:34:16]}  Nxa2 {[%clk 0:21:37]} 20. Qe3 {[%clk 0:33:42]}  Nb4 {[%clk 0:14:53]} 21. Ra1 {[%clk 0:31:05]}  Bd8 {[%clk 0:14:08]}
22. Bf1 {[%clk 0:22:01]}  Ne6 {[%clk 0:11:40]} 23. Rd1 {[%clk 0:18:29]}  Nxd4 {[%clk 0:08:21]} 24. Bxd4 {[%clk 0:18:39]}  c5 {[%clk 0:07:15]}
25. Bc3 {[%clk 0:17:47]}  Be7 {[%clk 0:06:28]} 26. Qg3 {[%clk 0:15:56]}  Nc6 {[%clk 0:04:12]} 27. Be2 {[%clk 0:15:57]}  Nd4 {[%clk 0:02:33]}
28. Bxd4 {[%clk 0:16:07]}  cxd4 {[%clk 0:03:01]} 29. Bg4 {[%clk 0:15:40]}  f5 {[%clk 0:03:01]} 30. exf5 {[%clk 0:15:48]}  Bxf5 {[%clk 0:03:17]}
31. Bxf5 {[%clk 0:16:12]}  Rxf5 {[%clk 0:03:46]} 32. Qd3 {[%clk 0:15:32]}  Ra5 {[%clk 0:03:56]} 33. Nf3 {[%clk 0:13:59]}  Bf6 {[%clk 0:03:58]}
34. g3 {[%clk 0:12:58]}  Ra3 {[%clk 0:02:16]} 35. Nxd4 {[%clk 0:11:33]}  Bxd4 {[%clk 0:02:38]} 36. Qxd4 {[%clk 0:11:59]}  Qxd4 {[%clk 0:02:43]}
37. Rxd4 {[%clk 0:12:23]}  Rxb3 {[%clk 0:02:59]} 38. Rxd6 {[%clk 0:12:48]}  b5 {[%clk 0:03:11]} 39. cxb5 {[%clk 0:12:43]}  Rxb5 {[%clk 0:03:39]}
40. Rd7 {[%clk 0:11:24]}  h6 {[%clk 0:03:38]} 41. Kg2 {[%clk 0:11:44]}  Kh7 {[%clk 0:03:13]} 42. g4 {[%clk 0:11:03]}  h5 {[%clk 0:09:32]}
43. h3 {[%clk 0:40:28]}  Kh6 {[%clk 0:08:58]} 44. Kg3 {[%clk 0:37:25]}  Rb3+ {[%clk 0:09:14]} 45. f3 {[%clk 0:36:40]}  hxg4 {[%clk 0:06:05]}
46. Kxg4 {[%clk 0:35:44]}  Rb1 {[%clk 0:04:33]} 47. Rd8 {[%clk 0:32:34]}  Rg1+ {[%clk 0:03:09]} 48. Kf5 {[%clk 0:32:20]}  Kh7 {[%clk 0:03:23]}
49. h4 {[%clk 0:32:27]}  Rg3 {[%clk 0:03:48]} 50. Kf4 {[%clk 0:32:12]}  Rh3 {[%clk 0:04:14]} 51. Kg4 {[%clk 0:32:37]}  Rh1 {[%clk 0:04:40]}
52. Rd4 {[%clk 0:32:04]}  Rg1+ {[%clk 0:04:56]} 53. Kf5 {[%clk 0:32:23]}  Rf1 {[%clk 0:05:16]} 54. Rf4 {[%clk 0:31:50]}  Ra1 {[%clk 0:05:20]}
55. Kg5 {[%clk 0:31:12]}  Rg1+ {[%clk 0:05:35]} 56. Rg4 {[%clk 0:31:31]}  Rf1 {[%clk 0:05:44]} 57. f4 {[%clk 0:31:35]}  Ra1 {[%clk 0:05:51]}
58. h5 {[%clk 0:29:43]}  Ra5+ {[%clk 0:05:14]} 59. f5 {[%clk 0:31:43]}  Ra1 {[%clk 0:03:09]} 60. Rd4 {[%clk 0:29:05]}  Rg1+ {[%clk 0:03:29]}
61. Rg4 {[%clk 0:28:26]}  Ra1 {[%clk 0:03:55]} 62. Rg3 {[%clk 0:28:29]}  Rb1 {[%clk 0:04:03]} 63. Kf4 {[%clk 0:28:41]}  Rb4+ {[%clk 0:03:16]}
64. Kg5 {[%clk 0:28:47]}  Rb1 {[%clk 0:03:41]} 65. Kf4 {[%clk 0:29:00]}  Rb4+ {[%clk 0:04:07]} 66. Kg5 {[%clk 0:29:26]}  Rb1 {[%clk 0:04:33]} 1/2-1/2

[Event "2026 European Womens Championship"]
[Site "Batumi, GE"]
[Date "2026.06.03"]
[Round "9"]
[White "Avramidou, Anastasia"]
[Black "Mamedjarova, Turkan"]
[Result "1-0"]
[Board "29"]
[TimeControl "5400+30"]
[WhiteFideId "4239873"]
[BlackFideId "13402005"]
[WhiteElo "2320"]
[BlackElo "2222"]
[WhiteTitle "FM"]
[BlackTitle "WGM"]
[WhiteClock "0:02:39"]
[BlackClock "0:03:26"]
[Variant "Standard"]

1. Nf3 {[%clk 1:30:56]}  Nf6 {[%clk 1:30:51]} 2. g3 {[%clk 1:30:44]}  e6 {[%clk 1:31:03]} 3. Bg2 {[%clk 1:31:40]}  d5 {[%clk 1:30:25]}
4. O-O {[%clk 1:31:42]}  Be7 {[%clk 1:27:19]} 5. d3 {[%clk 1:32:02]}  O-O {[%clk 1:27:32]} 6. Nbd2 {[%clk 1:32:25]}  b6 {[%clk 1:25:38]}
7. e4 {[%clk 1:28:35]}  Bb7 {[%clk 1:25:22]} 8. e5 {[%clk 1:27:39]}  Nfd7 {[%clk 1:25:34]} 9. Re1 {[%clk 1:28:01]}  c5 {[%clk 1:17:36]}
10. Nf1 {[%clk 1:27:19]}  Nc6 {[%clk 1:17:12]} 11. h4 {[%clk 1:24:39]}  b5 {[%clk 1:07:43]} 12. N1h2 {[%clk 1:21:30]}  Rc8 {[%clk 1:02:35]}
13. Ng4 {[%clk 1:16:32]}  Nd4 {[%clk 0:51:54]} 14. Nxd4 {[%clk 1:12:25]}  cxd4 {[%clk 0:52:21]} 15. Bf4 {[%clk 1:07:58]}  a5 {[%clk 0:51:03]}
16. Re2 {[%clk 0:52:55]}  b4 {[%clk 0:48:56]} 17. Qd2 {[%clk 0:49:06]}  a4 {[%clk 0:46:13]} 18. Bg5 {[%clk 0:40:59]}  b3 {[%clk 0:35:12]}
19. axb3 {[%clk 0:41:21]}  axb3 {[%clk 0:35:32]} 20. cxb3 {[%clk 0:40:52]}  Bxg5 {[%clk 0:28:48]} 21. hxg5 {[%clk 0:39:23]}  Qb6 {[%clk 0:28:52]}
22. b4 {[%clk 0:34:50]}  Ra8 {[%clk 0:28:05]} 23. Ree1 {[%clk 0:31:04]}  Rxa1 {[%clk 0:22:24]} 24. Rxa1 {[%clk 0:31:27]}  Ra8 {[%clk 0:22:09]}
25. Rc1 {[%clk 0:16:59]}  Kf8 {[%clk 0:17:41]} 26. Bf3 {[%clk 0:15:55]}  Ra4 {[%clk 0:11:46]} 27. Qf4 {[%clk 0:10:58]}  Rxb4 {[%clk 0:10:33]}
28. Nh6 {[%clk 0:08:41]}  f6 {[%clk 0:05:09]} 29. gxf6 {[%clk 0:08:38]}  gxf6 {[%clk 0:05:25]} 30. Ng4 {[%clk 0:03:24]}  Qd8 {[%clk 0:04:14]}
31. exf6 {[%clk 0:03:23]}  Kf7 {[%clk 0:03:34]} 32. Rc7 {[%clk 0:02:21]}  Bc8 {[%clk 0:03:26]} 33. Ne5+ {[%clk 0:02:39]} 1-0

[Event "2026 European Womens Championship"]
[Site "Batumi, GE"]
[Date "2026.06.03"]
[Round "9"]
[White "Sliwicka, Alicja"]
[Black "Tirpan, Ceren"]
[Result "1-0"]
[Board "30"]
[TimeControl "5400+30"]
[WhiteFideId "1150677"]
[BlackFideId "26385309"]
[WhiteElo "2315"]
[BlackElo "2209"]
[WhiteTitle "WGM"]
[BlackTitle "WFM"]
[WhiteClock "0:22:56"]
[BlackClock "0:01:30"]
[Variant "Standard"]

1. e4 {[%clk 1:30:58]}  c5 {[%clk 1:30:55]} 2. Nf3 {[%clk 1:31:22]}  Nc6 {[%clk 1:31:21]} 3. d4 {[%clk 1:31:45]}  cxd4 {[%clk 1:31:46]}
4. Nxd4 {[%clk 1:32:10]}  e6 {[%clk 1:32:11]} 5. Nc3 {[%clk 1:32:33]}  Qc7 {[%clk 1:32:38]} 6. Be3 {[%clk 1:32:45]}  a6 {[%clk 1:33:00]}
7. a3 {[%clk 1:33:10]}  Nxd4 {[%clk 1:33:09]} 8. Bxd4 {[%clk 1:25:54]}  Ne7 {[%clk 1:33:30]} 9. Qg4 {[%clk 1:16:10]}  d6 {[%clk 1:12:17]}
10. Qg3 {[%clk 1:13:16]}  Nc6 {[%clk 1:12:39]} 11. Be3 {[%clk 1:12:38]}  b5 {[%clk 1:09:31]} 12. f4 {[%clk 1:07:51]}  Bb7 {[%clk 0:56:09]}
13. Bd3 {[%clk 1:05:32]}  h5 {[%clk 0:51:37]} 14. h3 {[%clk 1:05:13]}  Rg8 {[%clk 0:37:04]} 15. O-O {[%clk 0:55:14]}  Be7 {[%clk 0:35:56]}
16. f5 {[%clk 0:51:42]}  h4 {[%clk 0:33:51]} 17. Qf2 {[%clk 0:46:06]}  Ne5 {[%clk 0:29:54]} 18. Bd4 {[%clk 0:42:45]}  Bf6 {[%clk 0:24:41]}
19. Ne2 {[%clk 0:41:42]}  Qe7 {[%clk 0:19:32]} 20. a4 {[%clk 0:39:25]}  Nxd3 {[%clk 0:17:29]} 21. cxd3 {[%clk 0:39:37]}  e5 {[%clk 0:17:52]}
22. Bb6 {[%clk 0:39:37]}  Qd7 {[%clk 0:09:55]} 23. Rfc1 {[%clk 0:39:33]}  Rc8 {[%clk 0:10:08]} 24. Rxc8+ {[%clk 0:39:18]}  Qxc8 {[%clk 0:09:36]}
25. Rc1 {[%clk 0:39:40]}  Qa8 {[%clk 0:09:03]} 26. Nc3 {[%clk 0:36:37]}  Kd7 {[%clk 0:06:37]} 27. Nd5 {[%clk 0:33:18]}  Rc8 {[%clk 0:06:45]}
28. Nxf6+ {[%clk 0:29:07]}  gxf6 {[%clk 0:07:09]} 29. Rxc8 {[%clk 0:28:47]}  Qxc8 {[%clk 0:07:34]} 30. axb5 {[%clk 0:27:21]}  axb5 {[%clk 0:07:44]}
31. Qxh4 {[%clk 0:27:29]}  Qc1+ {[%clk 0:05:03]} 32. Kh2 {[%clk 0:27:53]}  Ke7 {[%clk 0:01:34]} 33. Qf2 {[%clk 0:27:00]}  b4 {[%clk 0:02:00]}
34. Ba5 {[%clk 0:23:42]}  Qc5 {[%clk 0:02:13]} 35. Qxc5 {[%clk 0:21:52]}  dxc5 {[%clk 0:02:41]} 36. Bb6 {[%clk 0:21:44]}  Kd6 {[%clk 0:02:54]}
37. h4 {[%clk 0:21:17]}  c4 {[%clk 0:01:40]} 38. dxc4 {[%clk 0:21:34]}  Bxe4 {[%clk 0:02:05]} 39. g4 {[%clk 0:21:57]}  Kc6 {[%clk 0:01:02]}
40. Be3 {[%clk 0:22:15]}  Kd7 {[%clk 0:01:11]} 41. h5 {[%clk 0:22:34]}  Ke8 {[%clk 0:01:39]} 42. Bc5 {[%clk 0:22:56]}  Bf3 {[%clk 0:01:30]} 1-0